Cogmind - Beta 14 @@@ ROGUE MODE // 2024.08.10 @ 10:04:51 Player: LU-1G1 Result: Destroyed by H-71 Marshal with Heavy Mass Driver Performance ------------- Evolutions (5) 2500 Regions Visited (11) 2200 Robots Destroyed (69) 345 Value Destroyed (1701) 1701 Prototype IDs (22) 440 Alien Tech Used (0) 0 Bonus (500) 500 TOTAL SCORE: 7686 Bonus ------- High Alert Combat Kills 66 Follower Combat Kills 134 Registered with UFD 300 Cogmind --------- Core Integrity 0/1000 Matter 59/300 Energy 95/100 System Corruption 5% Temperature Cool (0) Movement Core (50) Location -5/Factory Parts ------- > --- POWER (2) -------- (None) > --- PROPULSION (5) --- (None) > --- UTILITY (8) ------ Improved Melee Analysis Suite > --- WEAPON (2) ------- (None) > --- INVENTORY (5) ---- Improved Propulsion Shielding Makeshift Light Armor Plating Scatter Rocket Array LU-1G1's Laser Shovel CPS Tube (2) Peak State ------------ > --- POWER ------------ (None) > --- PROPULSION ------- Heavy Treads Heavy Treads Cooled Airjet > --- UTILITY ---------- Experimental Heat Sink Deep Structural Scanner Advanced Signal Interpreter Improved Melee Analysis Suite Advanced Melee Analysis Suite Makeshift Hacking Suite A0-MCA's Component Scanner > --- WEAPON ----------- Scatter Rocket Array Great Maul > --- INVENTORY -------- Improved Propulsion Shielding Makeshift Light Armor Plating LU-1G1's Laser Shovel CPS Tube [Rating: 77] Favorites ----------- Power Improved Ion Engine Engine Improved Ion Engine Reactor Cold Fusion Reactor Propulsion Light Treads Treads Light Treads Wheel Subdweller Monowheel Hover Unit Cooled Airjet Flight Unit Improved Cesium-ion Thruster Utility Huge Storage Unit Device Shield Generator Storage Huge Storage Unit Processor Improved Melee Analysis Suite Hackware Makeshift Hacking Suite Protection Heavy Armor Plating Weapon Assault Rifle Energy Cannon Powered Cannon Ballistic Gun Assault Rifle Ballistic Cannon Battle Cannon Launcher Grenade Launcher Special Weapon LU-1G1's Laser Shovel Impact Weapon Impact Mace Slashing Weapon Ripper Build | -11 -10 -10 -10 -9 -9 -6 -6 -6 -6 -5 -5 ------- Run | Yrd Mat Min Sub Rec Scr Fac Low Low Zio Pro Fac Slots Evolved 10 | . . . . . . 8 . . . . 2 Power 1 | . . . . . . 1 . . . . . Propulsion 3 | . . . . . . 2 . . . . 1 Utility 6 | . . . . . . 5 . . . . 1 Weapon . | . . . . . . . . . . . . Parts Attached 101 | 8 8 3 9 2 11 31 1 . 4 4 20 Power 11 | 1 . 1 . 1 1 5 . . 1 1 . Engine 8 | 1 . 1 . 1 1 2 . . 1 1 . Core . | . . . . . . . . . . . . Reactor 3 | . . . . . . 3 . . . . . Propulsion 27 | 2 1 . 4 1 3 9 . . 1 1 5 Treads 17 | 2 1 . 3 1 3 5 . . . . 2 Leg . | . . . . . . . . . . . . Wheel 1 | . . . 1 . . . . . . . . Hover 5 | . . . . . . 3 . . . . 2 Flight 4 | . . . . . . 1 . . 1 1 1 Utility 30 | 2 4 2 1 . 4 6 1 . 2 . 8 Device 14 | 1 1 2 . . 3 3 1 . . . 3 Storage 7 | 1 3 . 1 . 1 . . . 1 . . Processor 5 | . . . . . . 1 . . . . 4 Hackware 1 | . . . . . . . . . 1 . . Protection 3 | . . . . . . 2 . . . . 1 Artifact . | . . . . . . . . . . . . Weapon 33 | 3 3 . 4 . 3 11 . . . 2 7 Energy Gun . | . . . . . . . . . . . . Energy Cannon 1 | . . . . . . 1 . . . . . Ballistic Gun 8 | 3 2 . 1 . 1 1 . . . . . Ballistic Cannon 3 | . . . . . . 3 . . . . . Launcher 9 | . 1 . 1 . . 3 . . . 1 3 Special Weapon 4 | . . . . . 1 1 . . . 1 1 Impact Weapon 5 | . . . . . . 2 . . . . 3 Slashing Weapon 3 | . . . 2 . 1 . . . . . . Piercing Weapon . | . . . . . . . . . . . . Special Melee Weapon . | . . . . . . . . . . . . Unidentified Prototypes 8 | . . . . . 1 5 . . . . 2 Parts Lost 35 | . 1 1 2 . . 14 . . . . 17 Power 2 | . . 1 . . . . . . . . 1 Propulsion 18 | . . . 2 . . 8 . . . . 8 Utility 11 | . 1 . . . . 4 . . . . 6 Weapon 4 | . . . . . . 2 . . . . 2 Highest Loss Streak 9 | . 1 1 2 . . 9 . . . . 6 To Critical Strikes . | . . . . . . . . . . . . Average Slot Usage (%) 91 | . 98 99 99 100 98 53 28 33 43 47 56 Engine 12 | . 14 13 14 14 13 2 . . . . 2 Treads 24 | . 27 28 27 28 27 14 . . . . 1 Flight 1 | . . . . . . 2 6 6 11 14 10 Device 12 | . 13 14 14 14 13 8 8 13 8 6 6 Storage 12 | . 14 14 14 14 13 3 . . 4 6 3 Processor 1 | . . . . . . 1 6 6 6 6 15 Ballistic Gun 14 | . 27 28 16 14 13 2 . . . . . Slashing Weapon 9 | . . . 10 14 13 . . . . . . Peak Build Rating 77 | 7 8 10 16 19 26 64 25 25 34 38 77 Average Rating 18 | 5 7 8 14 18 19 30 22 25 30 31 48 On Entrance 19 | . 7 8 10 16 19 26 22 25 25 32 38 Naked Turns 84 | . . . . . 74 10 . . . . . Heaviest Build 149 | 15 20 24 95 97 97 149 5 5 15 18 20 Greatest Support 91 | 40 40 40 40 43 51 91 6 6 14 18 70 Greatest Overweight (x) 4 | . . . 4 2 2 1 . . 1 . 4 Average Overweight (x) . | . . . 1 2 1 . . . . . . Largest Inventory Capacity 25 | 8 25 10 25 25 25 25 5 5 10 10 10 Average Capacity 19 | 7 10 10 22 25 24 17 5 5 8 10 8 Most Carried 25 | 7 11 10 21 25 25 23 5 5 8 8 10 Average Carried 18 | 5 9 9 16 24 24 12 4 5 6 7 7 Final Capacity 25 | 8 10 10 25 25 25 5 5 5 10 10 5 Final Carried 25 | 7 10 10 19 25 24 5 5 5 8 7 5 Class Distribution -------------------- 100% | Mutant Dominant Class ---------------- Mutant | -10/Materials Mutant | -10/Mines Mutant | -10/Subcaves Mutant | -9/Recycling Mutant | -9/Scraptown Mutant | -6/Factory Mutant | -6/Lower Caves Mutant | -6/Lower Caves Mutant | -6/Zion Mutant | -5/Proximity Caves Mutant | -5/Factory Resources | -11 -10 -10 -10 -9 -9 -6 -6 -6 -6 -5 -5 ----------- Run | Yrd Mat Min Sub Rec Scr Fac Low Low Zio Pro Fac Matter Collected 1724 | 406 270 104 99 63 30 498 10 . . 22 222 Remotely . | . . . . . . . . . . . . Salvage Created 2120 | 200 323 234 230 162 . 456 . . . 50 465 Parts 103 | 16 22 12 22 5 . 5 . . . 2 19 Haulers Intercepted 2 | . 1 . . . . . . . . . 1 Recyclers Shooed 5 | . 4 . . . . 1 . . . . . Parts Field Recycled . | . . . . . . . . . . . . Retrieved Matter . | . . . . . . . . . . . . Parts Self-Destructed 17 | . . . 7 . . . 10 . . . . Prevented 1 | . . . . . . . 1 . . . . Kills | -11 -10 -10 -10 -9 -9 -6 -6 -6 -6 -5 -5 ------- Run | Yrd Mat Min Sub Rec Scr Fac Low Low Zio Pro Fac Combat Hostiles Destroyed 41 | . 8 5 9 2 . 8 . . . 5 4 Melee 5 | . . . 3 2 . . . . . . . Guns 13 | . 5 5 2 . . 1 . . . . . Cannons 2 | . . . . . . 2 . . . . . AOE 20 | . 3 . 4 . . 4 . . . 5 4 Classes Destroyed 14 | 3 5 . 2 . . 1 . . . . 3 Worker 4 | 1 . . . . . . . . . . 3 Builder 8 | . 1 1 . . . . . . . . 6 Tunneler 7 | 5 . 1 . . . 1 . . . . . Hauler 2 | . 1 . . . . . . . . . 1 Recycler 5 | 1 . . . 1 . 1 . . . . 2 Operator 1 | . . . . . . . . . . . 1 Drone 1 | . . . . . . . . . . . 1 Watcher 2 | . 2 . . . . . . . . . . Swarmer 14 | . 3 1 4 . . . . . . 5 1 Grunt 17 | . 5 4 . . . 7 . . . . 1 Sentry 3 | . . . 1 2 . . . . . . . Programmer 1 | . . . . . . . . . . . 1 Behemoth 1 | . . . . . . 1 . . . . . Subdweller 4 | . . . 4 . . . . . . . . Best Kill Streak 11 | 2 4 5 4 2 . 6 . . . 5 11 Combat Bots Only 5 | . 3 4 4 1 . 5 . . . 5 3 Max Kills in Single Turn 5 | 1 3 1 3 1 . 2 . . . 2 5 Gunslinging . | . . . . . . . . . . . . Exploded 3 | . 3 . 3 . . 2 . . . 2 1 Melee 1 | . . . 1 1 . . . . . . . Uniques/NPCs Destroyed . | . . . . . . . . . . . . Combat | -11 -10 -10 -10 -9 -9 -6 -6 -6 -6 -5 -5 -------- Run | Yrd Mat Min Sub Rec Scr Fac Low Low Zio Pro Fac Hostile Shots Fired 595 | . 42 16 59 14 . 196 3 2 . 12 251 Missed 234 | . 4 7 29 3 . 79 1 . . 8 103 Damage Taken 6673 | . 400 132 426 157 . 2007 39 38 . 84 3390 Core 1609 | . 18 26 89 14 . 302 17 38 . 33 1072 Absorbed by Shields 56 | . . . . . . 56 . . . . . Redirected to Shielding 107 | . . . . . . . . . . . 107 Regen/Repaired (Parts) 164 | . 163 . . . . . . . . . 1 Core Remaining (%) 65 | 100 . . . . 41 . . . . 54 . Volleys Fired 123 | 21 39 14 10 . . 28 . . . 6 5 Largest 2 | 2 2 2 2 . . 2 . . . 1 1 Hottest 59 | 40 40 40 40 . . 59 . . . 30 50 Shots Fired 214 | 42 77 28 17 . . 39 . . . 6 5 Gun 171 | 42 76 28 14 . . 11 . . . . . Cannon 24 | . . . . . . 24 . . . . . Launcher 19 | . 1 . 3 . . 4 . . . 6 5 Special . | . . . . . . . . . . . . Kinetic 184 | 42 76 28 14 . . 24 . . . . . Thermal 13 | . . . . . . 13 . . . . . Explosive 17 | . 1 . 3 . . 2 . . . 6 5 Electromagnetic . | . . . . . . . . . . . . Robot Hit Streak 12 | 8 12 11 12 . . 8 . . . 5 1 Robot Miss Streak 6 | 2 2 1 3 . . 2 . . . 1 6 Penetration Max . | . . . . . . . . . . . . Secondary Targets 2 | . 1 1 . . . . . . . . . Max Gunslinging Chain 1 | . 1 1 . . . . . . . . . Shots Hit Robots 168 | 28 52 23 14 12 . 29 . . . 4 6 Core Hits 110 | 8 19 12 12 3 . 20 . . . 7 29 Critical Kills 3 | . . 1 . . . 2 . . . . . Critical Parts Destroyed 5 | . 1 . . . . . . . . . 4 Critical Strikes 11 | . 1 1 . 3 . 2 . . . . 4 Meltdown 1 | . . . . . . 1 . . . . . Destroy 3 | . 1 1 . . . 1 . . . . . Smash 4 | . . . . . . . . . . . 4 Sever 3 | . . . . 3 . . . . . . . Melee Attacks 47 | . . . 21 12 2 1 . . . . 11 Impact 12 | . . . . . . 1 . . . . 11 Slashing 35 | . . . 21 12 2 . . . . . . Piercing . | . . . . . . . . . . . . Sneak Attacks 7 | . . . . 2 . 1 . . . . 4 Combat Hostiles 1 | . . . . 1 . . . . . . . Follow-up Attacks . | . . . . . . . . . . . . Damage Inflicted 6271 | 360 839 325 349 466 . 1441 . . . 375 2116 Guns 1574 | 360 671 298 129 . . 116 . . . . . Cannons 749 | . . . . . . 749 . . . . . Explosions 2681 | . 143 . 118 . . 439 . . . 375 1606 Melee 1215 | . . . 102 466 . 137 . . . . 510 Ramming 52 | . 25 27 . . . . . . . . . Kinetic 2114 | 360 671 298 129 . . 656 . . . . . Thermal 538 | . . . . . . 538 . . . . . Explosive 2352 | . 143 . 118 . . 110 . . . 375 1606 Electromagnetic . | . . . . . . . . . . . . Impact 647 | . . . . . . 137 . . . . 510 Slashing 568 | . . . 102 466 . . . . . . . Piercing . | . . . . . . . . . . . . Highest Corruption 5 | . . . . . . . . . . . 5 Average Corruption 5 | . . . . . . . . . . . 5 Corruption Purged . | . . . . . . . . . . . . Corruption Blocked . | . . . . . . . . . . . . Effects 4 | . . . . . . . . . . . 4 Message Errors 2 | . . . . . . . . . . . 2 Matter Fused 1 | . . . . . . . . . . . 1 Parts Rejected 1 | . . . . . . . . . . . 1 Overload Shots . | . . . . . . . . . . . . Overflow Damage 696 | . . . . . . 123 . . . 52 521 Projectiles 16 | . . . . . . 16 . . . . . Explosions 100 | . . . . . . . . . . 52 48 Melee 580 | . . . . . . 107 . . . . 473 Knockbacks 9 | . 1 . . . . 6 . . . . 2 Impact 4 | . 1 . . . . 1 . . . . 2 Kinetic 5 | . . . . . . 5 . . . . . Secondary . | . . . . . . . . . . . . Self-Inflicted Damage 382 | . . . 16 . . 18 . . . 18 330 Shots 14 | . . . 1 . . 1 . . . 1 11 Rammed 13 | . 7 6 . . . . . . . . . Targets Rammed 14 | . 7 7 . . . . . . . . . Kicked . | . . . . . . . . . . . . Crushed 1 | . . 1 . . . . . . . . . Highest Temperature 186 | . . 10 . 9 . 186 . . . . 4 Average Temperature 42 | . . 10 . 9 . 47 . . . . 3 Received Heat Transfer 1763 | . 204 84 159 45 . 812 9 12 . . 438 Siege Activations . | . . . . . . . . . . . . Robots Corrupted 2 | . . . . . . 1 . . . . 1 Combat Hostiles . | . . . . . . . . . . . . Parts Fried 5 | . . . . . . 2 . . . . 3 Impact Corruptions 13 | . . . . . . 3 . . . . 10 Robots Melted 1 | . . . . . . 1 . . . . . Combat Hostiles 1 | . . . . . . 1 . . . . . Parts Melted 1 | . . . . . . 1 . . . . . Heat Transferred . | . . . . . . . . . . . . Parts Sabotaged . | . . . . . . . . . . . . Parts Stolen . | . . . . . . . . . . . . Parts Stripped . | . . . . . . . . . . . . Power Chain Reactions . | . . . . . . . . . . . . Alert | -11 -10 -10 -10 -9 -9 -6 -6 -6 -6 -5 -5 ------- Run | Yrd Mat Min Sub Rec Scr Fac Low Low Zio Pro Fac Peak Influence 844 | 35 210 139 . 54 . 113 . . . . 844 Initial 388 | . 22 39 . 9 . . . . . . 388 Average 99 | 11 81 55 . 23 . 25 . . . . 544 Maximum Alert Level 3 | . 1 . . . . . . . . . 3 Low Security (%) 88 | 100 96 100 . 100 . 100 . . . . . Level 1 1 | . 3 . . . . . . . . . 6 Level 2 9 | . . . . . . . . . . . 83 Level 3 1 | . . . . . . . . . . . 9 Level 4 . | . . . . . . . . . . . . Level 5 . | . . . . . . . . . . . . High Security . | . . . . . . . . . . . . Max Security . | . . . . . . . . . . . . Squads Dispatched 13 | . 3 1 . . . 1 . . . . 8 Investigation 7 | . 3 1 . . . . . . . . 3 Extermination 1 | . . . . . . . . . . . 1 Reinforcement 5 | . . . . . . 1 . . . . 4 Assault . | . . . . . . . . . . . . Garrison . | . . . . . . . . . . . . Intercept . | . . . . . . . . . . . . Searches Triggered 1 | . . . . . . . . . . . 1 Construction Impeded 1 | . . . . . . . . . . . 1 Haulers Reinforced . | . . . . . . . . . . . . Active Scanning Responses . | . . . . . . . . . . . . Cargo Convoy Interrupts . | . . . . . . . . . . . . Stealth | -11 -10 -10 -10 -9 -9 -6 -6 -6 -6 -5 -5 --------- Run | Yrd Mat Min Sub Rec Scr Fac Low Low Zio Pro Fac Distress Signals 6 | . 1 . . . . 1 . . . . 4 Communications Jammed . | . . . . . . . . . . . . Distress Signals . | . . . . . . . . . . . . Times Spotted 140 | . 16 7 12 2 . 14 7 5 . 9 68 Peak Tracking Total 20 | . 3 3 6 1 4 5 6 5 . 5 20 Tactical Retreats 17 | . . . 1 . . 2 1 . . 1 12 Traps | -11 -10 -10 -10 -9 -9 -6 -6 -6 -6 -5 -5 ------- Run | Yrd Mat Min Sub Rec Scr Fac Low Low Zio Pro Fac Traps Triggered 4 | . 1 . . . . 1 . . . . 2 Indirectly . | . . . . . . . . . . . . Trap Hack Attempts . | . . . . . . . . . . . . Triggered . | . . . . . . . . . . . . Disarmed . | . . . . . . . . . . . . Reprogrammed . | . . . . . . . . . . . . Reused . | . . . . . . . . . . . . Traps Extracted . | . . . . . . . . . . . . Installed . | . . . . . . . . . . . . Triggered 2 | . . . . . . . . 2 . . . Machines | -11 -10 -10 -10 -9 -9 -6 -6 -6 -6 -5 -5 ---------- Run | Yrd Mat Min Sub Rec Scr Fac Low Low Zio Pro Fac Machines Disabled 9 | . 1 . 1 . 1 . . . . . 6 Max in Single Turn 4 | . 1 . 1 . 1 . . . . . 4 Machines Repaired . | . . . . . . . . . . . . Machines Dismantled . | . . . . . . . . . . . . Machines Sabotaged . | . . . . . . . . . . . . Overloaded Fab Kills . | . . . . . . . . . . . . Hacking | -11 -10 -10 -10 -9 -9 -6 -6 -6 -6 -5 -5 --------- Run | Yrd Mat Min Sub Rec Scr Fac Low Low Zio Pro Fac Machines Accessed 23 | . 4 1 1 2 3 2 2 . . . 8 Terminals 10 | . 2 . . 2 . 1 . . . . 5 Fabricators 2 | . . . . . . . . . . . 2 Repair Stations 2 | . 1 . . . . . . . . . 1 Recycling Units 1 | . 1 . . . . . . . . . . Scanalyzers 1 | . . . . . . 1 . . . . . Garrison Access . | . . . . . . . . . . . . Total Hacks 89 | . 13 1 1 8 33 5 8 . . . 20 Successful 68 | . 6 1 1 4 33 4 8 . . . 11 Failed 21 | . 7 . . 4 . 1 . . . . 9 Catastrophic 1 | . 1 . . . . . . . . . . Database Lockouts . | . . . . . . . . . . . . Manual 18 | . 6 . . 6 . 1 . . . . 5 Terminals 31 | . 7 . . 8 . 3 . . . . 13 Fabricators 6 | . . . . . . . . . . . 6 Repair Stations 6 | . 5 . . . . . . . . . 1 Recycling Units 1 | . 1 . . . . . . . . . . Scanalyzers 2 | . . . . . . 2 . . . . . Garrison Access . | . . . . . . . . . . . . Terminal Hacks 54 | . 1 1 1 4 33 1 8 . . . 5 Record 40 | . . . . . 33 . 7 . . . . Robot Analysis 2 | . 1 . . 1 . . . . . . . Open Door 2 | . . 1 . . . . 1 . . . . Alert Level 2 | . . . . 1 . . . . . . 1 Unreport Threat 2 | . . . . . . . . . . . 2 Locate Traps 2 | . . . . . . 1 . . . . 1 Hauler Manifests 1 | . . . . 1 . . . . . . . Zone Layout 2 | . . . . 1 . . . . . . 1 Derelict Proto ID Bank 1 | . . . 1 . . . . . . . . Fabricator Hacks 5 | . . . . . . . . . . . 5 Network Status 1 | . . . . . . . . . . . 1 Load Schematic 2 | . . . . . . . . . . . 2 Build 2 | . . . . . . . . . . . 2 Repair Station Hacks 4 | . 4 . . . . . . . . . . Scan Component 2 | . 2 . . . . . . . . . . Repair 2 | . 2 . . . . . . . . . . Recycling Unit Hacks . | . . . . . . . . . . . . Scanalyzer 2 | . . . . . . 2 . . . . . Insert Component 1 | . . . . . . 1 . . . . . Analyze 1 | . . . . . . 1 . . . . . Garrison Access Hacks . | . . . . . . . . . . . . Unauthorized Hacks 3 | . 1 . . . . 1 . . . . 1 Terminals 1 | . . . . . . 1 . . . . . Botnet 1 | . . . . . . 1 . . . . . Fabricators . | . . . . . . . . . . . . Repair Stations 1 | . . . . . . . . . . . 1 Patch 1 | . . . . . . . . . . . 1 Recycling Units 1 | . 1 . . . . . . . . . . Tunnel 1 | . 1 . . . . . . . . . . Scanalyzers . | . . . . . . . . . . . . Garrison Access . | . . . . . . . . . . . . Data Cores Recovered . | . . . . . . . . . . . . Used . | . . . . . . . . . . . . Hacking Detections 13 | . 3 . . 2 . 1 . . . . 7 Full Trace Events 4 | . 2 . . . . . . . . . 2 Feedback Events . | . . . . . . . . . . . . Feedback Blocked . | . . . . . . . . . . . . Robot Schematics Acquired . | . . . . . . . . . . . . Robots Built . | . . . . . . . . . . . . Authchips . | . . . . . . . . . . . . Time . | . . . . . . . . . . . . Total Robot Build Rating . | . . . . . . . . . . . . Part Schematics Acquired 1 | . . . . . . 1 . . . . . Parts Built 2 | . . . . . . . . . . . 2 Authchips . | . . . . . . . . . . . . Time 268 | . . . . . . . . . . . 268 Total Part Build Rating 8 | . . . . . . . . . . . 8 Parts Repaired 2 | . 2 . . . . . . . . . . Time 52 | . 52 . . . . . . . . . . Parts Recycled . | . . . . . . . . . . . . Recycled Matter . | . . . . . . . . . . . . Retrieved Matter . | . . . . . . . . . . . . Retrieved Components . | . . . . . . . . . . . . Parts Scanalyzed 1 | . . . . . . 1 . . . . . Part Schematics Acquired 1 | . . . . . . 1 . . . . . Parts Damaged . | . . . . . . . . . . . . Bothacking | -11 -10 -10 -10 -9 -9 -6 -6 -6 -6 -5 -5 ------------ Run | Yrd Mat Min Sub Rec Scr Fac Low Low Zio Pro Fac Used RIF Installer . | . . . . . . . . . . . . Robots Hacked . | . . . . . . . . . . . . Non-combat . | . . . . . . . . . . . . Combat . | . . . . . . . . . . . . Robot Hacks Applied . | . . . . . . . . . . . . Relay Couplers Released . | . . . . . . . . . . . . Fabnet Peak Effective % . | . . . . . . . . . . . . Robots Rewired . | . . . . . . . . . . . . Allies Hacked . | . . . . . . . . . . . . Hacks Repelled . | . . . . . . . . . . . . Allies | -11 -10 -10 -10 -9 -9 -6 -6 -6 -6 -5 -5 -------- Run | Yrd Mat Min Sub Rec Scr Fac Low Low Zio Pro Fac Total Allies 3 | . . 3 . . . . . . . . . Largest Group 3 | . . 3 2 . . . . . . . . Highest-Rated Group 40 | . . 40 24 . . . . . . . . Highest-Rated Ally 16 | . . 16 16 . . . . . . . . Total Orders . | . . . . . . . . . . . . Ally Attacks 31 | . . 13 18 . . . . . . . . Total Damage 339 | . . 158 181 . . . . . . . . Kills 6 | . . 4 2 . . . . . . . . Allies Corrupted . | . . . . . . . . . . . . Allies Melted . | . . . . . . . . . . . . Intel | -11 -10 -10 -10 -9 -9 -6 -6 -6 -6 -5 -5 ------- Run | Yrd Mat Min Sub Rec Scr Fac Low Low Zio Pro Fac Robot Analysis Total 2 | . 1 . . 1 . . . . . . . Derelict Logs Recovered 7 | . . . . . 4 . 1 2 . . . Drone Launches . | . . . . . . . . . . . . Drone Recoveries . | . . . . . . . . . . . . Exploration | -11 -10 -10 -10 -9 -9 -6 -6 -6 -6 -5 -5 ------------- Run | Yrd Mat Min Sub Rec Scr Fac Low Low Zio Pro Fac Turns Passed 10783 | 278 777 936 1348 914 4976 638 136 90 91 156 443 Spaces Moved 5729 | 124 336 440 444 268 1749 597 325 256 202 219 769 Core 301 | 2 . . . . 145 20 . . . . 134 Treads 3320 | 122 336 440 429 268 1604 120 . . . . 1 Legs . | . . . . . . . . . . . . Wheels 15 | . . . 15 . . . . . . . . Hover 150 | . . . . . . 81 . . . . 69 Flight 1943 | . . . . . . 376 325 256 202 219 565 Fastest Speed 32 | 50 160 160 150 320 50 35 35 35 35 35 32 Average Speed 167 | 158 160 160 276 320 279 78 35 35 40 40 41 Slowest Speed 320 | 160 160 160 320 320 320 240 35 35 119 42 250 Overloaded Moves 69 | . . . . . . . . . . . 69 Propulsion Burnouts . | . . . . . . . . . . . . Robots Hopped 8 | . . . . . . . . . . . 8 Cave-ins Triggered . | . . . . . . . . . . . . Exploration Rate (%) 43 | 9 56 76 28 59 92 16 46 57 13 39 28 Regions Visited 11 Branch Regions 8 Pre-discovered Areas 7 | . 1 . . . 5 . 1 . . . . Known Exits Taken 4 | . . . . . 1 1 . . 1 1 . Unknown Exits Taken 7 | 1 1 1 1 1 . . 1 1 . . . Scrap Searched 7 | . . 1 3 . 2 . 1 . . . . Spaces Dug 30 | . . . 3 . 4 10 4 . . 2 7 Terrain Destroyed 132 | . 6 . 12 . 3 16 4 . . 31 60 Melee 8 | . . . 3 . . . . . . . 5 Projectile 2 | . . . . . . 2 . . . . . AOE 101 | . 6 . 9 . . 4 . . . 29 53 Terrain Rammed . | . . . . . . . . . . . . Walls Destroyed . | . . . . . . . . . . . . Machines Disabled . | . . . . . . . . . . . . Actions | -11 -10 -10 -10 -9 -9 -6 -6 -6 -6 -5 -5 --------- Run | Yrd Mat Min Sub Rec Scr Fac Low Low Zio Pro Fac Total 6636 | 161 495 640 518 307 1845 735 346 255 210 278 846 Wait 468 | . 91 173 19 22 29 24 20 . 1 50 39 Move 5703 | 123 335 439 443 267 1748 596 324 255 201 218 754 Hop 7 | . . . . . . . . . . . 7 Pick Up 81 | 8 8 1 13 4 35 6 1 . 2 . 3 Fast Attach 51 | 6 3 3 . . 10 10 . . 3 1 15 Attach 28 | 1 . . 2 . 1 17 1 . 1 1 4 Detach 16 | . . . . . . 9 . . 2 . 5 Swap 23 | 1 5 . 7 2 1 4 . . . 2 1 Drop 57 | 1 7 3 3 . 19 22 . . . . 2 Fire 123 | 21 39 14 10 . . 28 . . . 6 5 Melee 47 | . . . 21 12 2 1 . . . . 11 Ram . | . . . . . . . . . . . . Kick . | . . . . . . . . . . . . Crush 14 | . 7 7 . . . . . . . . . Escape Stasis 18 | . . . . . . 18 . . . . . Rewire . | . . . . . . . . . . . . Trap . | . . . . . . . . . . . . Miscellaneous . | . . . . . . . . . . . . Route ------- -11/Scrapyard -10/Materials (discovered 2 exits: [*Mat] / *Min) -10/Mines (discovered 3 exits: [*Mat] / [*Exi] / *Sub) -10/Subcaves -9/Recycling (discovered 2 exits: [*Fac] / *Scr) -9/Scraptown (discovered 2 exits: *Fac x2) -6/Factory (discovered 5 exits: *Fac x3 / *Low x2) -6/Lower Caves -6/Lower Caves -6/Zion -5/Proximity Caves -5/Factory (discovered 1 exit: *Fac) History --------- Turn | Location | Event 29 | -11/Scrapyard | Discovered new exit (range 16) 279 | -11/Scrapyard | Entered Materials 320 | -10/Materials | Build established: Mutant 716 | -10/Materials | Repaired Lgt. Treads 744 | -10/Materials | Repaired Assault Rifle 812 | -10/Materials | Discovered new exit (range 10) 998 | -10/Materials | Discovered new exit (range 8) 1056 | -10/Materials | Entered Mines 1059 | -10/Mines | Met a Derelict bent on vengeance 1264 | -10/Mines | Found DCF Scrap (13 items) 1492 | -10/Mines | Assisted by bots powering up and referring to "LRC-V3" 1735 | -10/Mines | Discovered new exit (range 16) 1756 | -10/Mines | Met a Derelict shopkeep closing up shop 1811 | -10/Mines | Deemed a non-threat by the Exiles lab entrance 1811 | -10/Mines | Discovered new exit (range 5) 1982 | -10/Mines | Discovered new exit (range 6) 1992 | -10/Mines | Entered Subcaves 1992 | -10/Subcaves | Accompanied by 2 allies 2025 | -10/Subcaves | Ambushed by Subdwellers from Twisted Machinery 2189 | -10/Subcaves | Visited 4L-MR0's lab 2218 | -10/Subcaves | Found Powered Cannon 2683 | -10/Subcaves | Shifting Twisted Machinery released Mak. Axe 2687 | -10/Subcaves | Shifting Twisted Machinery released Sub. Power Source 2894 | -10/Subcaves | A swath of the cavern ceiling suddenly collapsed 3245 | -10/Subcaves | Core integrity fell below 50% 3335 | -10/Subcaves | Discovered new exit (range 3) 3340 | -10/Subcaves | Entered Recycling 3341 | -9/Recycling | Met a Zionite searching for Scraptown 4103 | -9/Recycling | Discovered new exit (range 16) 4174 | -9/Recycling | Scanned before Scraplab entrance 4219 | -9/Recycling | Entered Scraplab 4247 | -9/Recycling | Discovered new exit (range 3) 4254 | -9/Recycling | Entered Scraptown 4833 | -9/Scraptown | Heard Great Nut preacher, LISTEN AND RECITE! 4871 | -9/Scraptown | Discovered new exit (range 7) 5063 | -9/Scraptown | Scanned Subdweller tech in exchange for log data 5070 | -9/Scraptown | Learned Factory garrison access intel 5073 | -9/Scraptown | Learned location of Quarantine (-3) 5079 | -9/Scraptown | Learned Factory stockpile data 5150 | -9/Scraptown | Visited Symbiants 5207 | -9/Scraptown | Visited CPS Storage 5795 | -9/Scraptown | Visited Comm Corps 5929 | -9/Scraptown | Visited Cyclists 6124 | -9/Scraptown | Visited Red Mages 6208 | -9/Scraptown | Found Relay Coupler [Proto] 6287 | -9/Scraptown | Visited Cave Peace 6431 | -9/Scraptown | Visited Awakened 6559 | -9/Scraptown | Visited UFD Registry 6559 | -9/Scraptown | Registered with UFD as "Steelkit" 6639 | -9/Scraptown | Visited Junk Repository 6774 | -9/Scraptown | Visited Junk Repository 6876 | -9/Scraptown | Visited Curators Association 7346 | -9/Scraptown | Visited A0-MCA Data Center 7366 | -9/Scraptown | Given a C rating by A0-MCA 7376 | -9/Scraptown | Found A0-MCA's Component Scanner 7463 | -9/Scraptown | Visited Research Penetration Think Tank 7677 | -9/Scraptown | Visited Scrap Suit Storage 7722 | -9/Scraptown | Visited LU-1G1's Boring Crew 7834 | -9/Scraptown | Visited Abandonware Association 7911 | -9/Scraptown | Learned abandonware demo "HACKBUD.EXE" 7911 | -9/Scraptown | Learned abandonware demo "POISON.EXE" 8004 | -9/Scraptown | Visited Scrapoid Pod Storage 8055 | -9/Scraptown | Visited Cartography Club 8164 | -9/Scraptown | Released all parts (7) 8209 | -9/Scraptown | Learned location of Zion (-6) 8209 | -9/Scraptown | Learned location of Armory (-4) 8209 | -9/Scraptown | Learned 8 Materials zone layouts 8209 | -9/Scraptown | Learned 16 Factory zone layouts 8209 | -9/Scraptown | Learned 24 Factory zone layouts 8209 | -9/Scraptown | Learned 8 Research zone layouts 8209 | -9/Scraptown | Learned 16 Research zone layouts 8209 | -9/Scraptown | Learned 4 Mines zone layouts 8209 | -9/Scraptown | Learned 4 Storage zone layouts 8209 | -9/Scraptown | Learned 8 Lower Caves zone layouts 8209 | -9/Scraptown | Learned 16 Proximity Caves zone layouts 8209 | -9/Scraptown | Learned Storage emergency access door positions 8209 | -9/Scraptown | Learned location of 1 exit from Factory 8209 | -9/Scraptown | Learned location of 2 exits from Factory 8209 | -9/Scraptown | Learned location of 3 exits from Upper Caves 8209 | -9/Scraptown | Identified exit to Factory 8213 | -9/Scraptown | Found Deep Structural Scanner 9168 | -9/Scraptown | Attacked by Scraptown defenders 9178 | -9/Scraptown | Found Prototype Special Weapon 9181 | -9/Scraptown | Identified LU-1G1's Laser Shovel 9230 | -9/Scraptown | Entered Factory 9230 | -6/Factory | Evolved 8 slots: Power x1, Propulsion x2, Utility x5 9231 | -6/Factory | Identified exit to Factory 9231 | -6/Factory | Identified exit to Lower Caves 9234 | -6/Factory | Loaded intel: 4 garrison access locations 9384 | -6/Factory | Spotted B-75 Beast 9473 | -6/Factory | Attached Powered Cannon, gained temporary slot: Power 9489 | -6/Factory | Destroyed B-75 Beast 9539 | -6/Factory | Lost 9 parts (3n4u2w) 9630 | -6/Factory | Lost 4 parts (4n) 9868 | -6/Factory | Entered Lower Caves 9869 | -6/Lower Caves | Learned location of 1 exit from Proximity Caves 9937 | -6/Lower Caves | Learned 8 Factory zone layouts 9937 | -6/Lower Caves | Learned Armory emergency access door positions 9937 | -6/Lower Caves | Learned Extension stockpile data 9937 | -6/Lower Caves | Learned Armory security intel 9959 | -6/Lower Caves | Encountered a Warlord checkpoint 10002 | -6/Lower Caves | Discovered new exit (range 4) 10004 | -6/Lower Caves | Entered another Lower Caves area 10023 | -6/Lower Caves | Learned Factory stockpile data 10073 | -6/Lower Caves | Learned Factory stockpile data 10092 | -6/Lower Caves | Discovered new exit (range 5) 10094 | -6/Lower Caves | Entered Zion 10095 | -6/Zion | Identified exit to Proximity Caves 10104 | -6/Zion | Acquired unknown access codes intercepted by a Zionite 10185 | -6/Zion | Entered Proximity Caves 10225 | -5/Proximity Caves | Spotted B-75 Beast 10246 | -5/Proximity Caves | Spotter reported a threat 10315 | -5/Proximity Caves | Spotter reported a threat 10341 | -5/Proximity Caves | Entered Factory 10341 | -5/Factory | Evolved 2 slots: Propulsion x1, Utility x1 10342 | -5/Factory | Identified exit to Factory 10554 | -5/Factory | Fabricated Cld. Airjet? 10556 | -5/Factory | Fabricated Cld. Airjet? 10635 | -5/Factory | Found Prototype Launcher 10635 | -5/Factory | Identified Tesla Bomb Launcher 10641 | -5/Factory | Search patrols dispatched 10658 | -5/Factory | Core integrity fell below 50% 10663 | -5/Factory | Lost 5 parts (4n1w) 10718 | -5/Factory | Found Scatter Rocket Array 10770 | -5/Factory | Core integrity fell below 20% 10784 | -5/Factory | Destroyed by H-71 Marshal with Heavy Mass Driver Last Messages --------------- 10739_ Penetrated by Slug. 10741_ K-01 Serf collects debris. 10741_ Mak. Hacking Suite destroyed. 10742_ K-01 Serf collects debris. 10742_ U-05 Engineer lays Concrete. 10743_ Hvy. Treads destroyed. 10743_ Critical hit (Burn: +37). 10744_ U-05 Engineer lays Concrete. 10745_ K-01 Serf collects debris. 10746_ U-05 Engineer builds a Wall. 10757_ VYMYFOJHS2TG7 4&Z4WW7X 10757_ Hvy. Treads destroyed. 10757_ Deep Structural Scanner destroyed. 10777_ Triggered Blade Trap. 10777_ Massive razor-sharp blades shoot up from within the floor. 10777_ A0-MCA's Component Scanner severed. 10777_ Adv. Melee Analysis Suite severed. 10777_ Adv. Signal Interpreter severed. 10778_ U-05 Engineer lays Concrete. 10784_ Penetrated by Slug. Map ----- +----------------------------------------------------+ | ????????????????????????????????????????????? | | ????????????????????????????????????????????? | | ????????????????????????????????????????????? | | ????????????????????????????????????????????? | | ????????????????????????????????????????????? | | ????????????????????????????????????????????? | | ????????????????????????????????????????????? | | ????????????????????????????????????????????? | | ????????????????????????????????????????????? | | ????????????????????????????????????????????? | | ????????????????????????????????????????????? | | ????????????????????????????????????????????? | | ??????????????#" """ #????????????????????? | | ??????????????#" """ #????????????????????? | | ??????????????#" """ #????????????????????? | | ??????????????# #????????????????????? | | ??????????????#####+####????????????????????? | | ???????????????# #????????????????????? | | ???????????????# #????????????????????? | | ???????????????# H #????????????????????? | | ???????????????# #????????????????????? | | ???????????????# #????????????????????? | | ????????########## #????????????????????? | | ????????# # ##???????????????????? | | ????????# # T#???????????????????? | | ????????# + @ % #???????????????????? | | ????????# # ##???????????????????? | | ????????# # #########????????????? | | ????????# # # ????????????? | | ????????# # # ?????????????? | | ????????# # # ???????#+#+### | | ????????# # % # ????????# | | ????############## # ??####### | | ????# # # ???+ | | ????# """ # #[ ! ???####### | | ????# """ # # ??????????# | | ????# """ # # ??????????# # | | ?????????????????# ###+############ # | | ?????????????????# # | | ?????????????? + k uk% # | | ???????????""" # # | | ??????????? # # | | ????????? ?# # | | ????????? ?# ######+########## | | ?????????? ! ??# #???????????????? | | ???????????###???# ^ +???????????????? | | ?????????????????# ######???????????????? | | ?????????????????# ?????????????????????? | | ?????????????????# ?????????????????????? | | ????????????????? ?????????????????????? | +----------------------------------------------------+ Best States ------------- Heat Dissipation 66 Energy Generation 41 Energy Capacity 415 Matter Stores 300 Matter Capacity 300 Sight Range 16 Robot Scan Range 16 Terrain Scan Density 10 Armor Coverage 825 Propulsion Shielding 66 Weapon Cycling 15 Evasion (%) 63 Melee Accuracy 20 Recoil Reduction 4 Offensive Hacking 11 Item Schematics ----------------- Cld. Airjet | -6/Factory | Scanalyzed Robot Schematics ------------------ None Fabricated ------------ Cld. Airjet | x1 | -5/Factory Cld. Airjet | x1 | -5/Factory Alien Tech Used ----------------- None Achievements -------------- None Challenges ------------ None Game ------ Seed HellfireMakeshiftDrivehammer Manual? 0 Play Time 00:56:29 Cumulative 671.0 hours Start 2024.08.10 @ 09:05:25 End 2024.08.10 @ 10:04:51 Sessions 1 Manual Loads 0 Difficulty Rogue Special Mode None Game No. 596 Rogue 381 Adventurer 112 Explorer 103 Win Type - Total 43 Types 27/0/8/3/0/0/4/1/0 Lore% 70 Gallery% 87 Achievement% 82 Wizard Run 0 Options --------- Layout 0 ASCII 1 Keyboard 1 Movement Vi Keybinds 1 Fullscreen 2 Font 20/Terminus Map View 72x56 Zoom Use 0% Tactical HUD 1 Map Filters NONE Filters NONE Steam 0 RUN: 097eeff3-7ee6-4113-bf27-7cc073daa09f